bitfinex/quotes_ETHUSD_20250219
["timestamp","ask_amount","ask_price","bid_price","bid_amount"]
[1739991269440,3.6934,2707.6,2706.9,5.37]
[1739991269639,3.6934,2707.6,2706.9,9.06415]
[1739991269840,0.8119,2707.7,2707.2,3.69381]
[1739991270443,4.5051,2707.7,2707.0,7.38808]
[1739991271174,4.5051,2707.7,2707.1,3.69389]
[1739991271664,0.8119,2707.7,2706.9,5.37]
[1739991271863,0.8119,2707.7,2707.1,3.69392]
[1739991272106,0.8119,2707.7,2707.1,7.38784]
[1739991272508,3.69331,2707.6,2707.1,3.69391]
[1739991272884,3.69331,2707.6,2706.9,9.06418]
[1739991273127,0.8091,2707.4,2706.9,12.75836]
[1739991273826,0.8091,2707.4,2707.0,3.69412]
[1739991275393,0.8212,2707.9,2707.0,4.14625772]
[1739991275599,0.796,2707.6,2707.1,3.69396]
[1739991276322,4.48931,2707.6,2707.0,3.69403]
[1739991276509,0.796,2707.6,2707.1,3.69387]
[1739991276931,4.48934,2707.6,2707.1,3.69387]
[1739991277846,0.796,2707.6,2707.1,3.69387]
[1739991278149,0.796,2707.6,2707.3,3.69368]
[1739991278309,0.796,2707.6,2707.5,3.69344]
[1739991278510,0.796,2707.6,2707.4,3.69356]
[1739991278933,0.796,2707.6,2706.8,0.7865]
[1739991279134,0.796,2707.6,2707.0,3.69412]
[1739991279347,0.796,2707.6,2707.0,3.69405]
[1739991279522,4.48937,2707.6,2707.0,3.69405]
[1739991279934,4.48937,2707.6,2707.0,7.3881]
[1739991280259,4.48937,2707.6,2707.1,3.69398]
[1739991280453,0.818262,2707.5,2707.0,3.69404]
[1739991281262,0.796,2707.6,2707.2,3.69384]
[1739991282234,0.796,2707.6,2707.0,3.69404]
[1739991282439,4.48937,2707.6,2707.0,3.69404]
[1739991282758,0.796,2707.6,2707.0,3.69404]
[1739991283063,4.48938,2707.6,2707.0,3.69404]
[1739991283661,5.307643,2707.6,2707.0,3.69404]
[1739991284359,0.8261,2707.5,2707.0,3.69404]
[1739991284920,0.8261,2707.5,2707.0,7.38809]
[1739991285563,0.8261,2707.5,2707.0,3.69404]
[1739991286058,0.8261,2707.5,2707.0,7.38809]
[1739991286263,0.8261,2707.5,2707.0,3.69404]
[1739991286461,0.821,2707.1,2706.7,3.69446]
[1739991286668,0.821,2707.1,2706.8,3.69439]
[1739991286964,0.821,2707.1,2706.7,3.69453]
[1739991287172,0.821,2707.1,2706.8,3.69438]
[1739991288667,0.821,2707.1,2706.7,3.69453]
[1739991288871,0.821,2707.1,2706.6,0.1483868]
[1739991289072,0.821,2707.1,2706.9,3.69418]
[1739991289874,0.821,2707.1,2706.9,7.38837]
[1739991290070,0.821,2707.1,2707.0,3.69412]
[1739991290289,0.7792,2707.4,2707.0,3.69412]
[1739991290473,1.86266065,2707.4,2707.0,3.69412]
[1739991290982,1.86266065,2707.4,2707.0,7.38816]
[1739991291192,1.86266065,2707.4,2707.0,3.69404]
[1739991291570,1.86266065,2707.4,2707.1,3.69398]
[1739991291887,1.86266065,2707.4,2707.0,3.69404]
[1739991292065,1.86266065,2707.4,2707.0,7.38809]
[1739991292683,1.86266065,2707.4,2707.0,7.3881]
[1739991292876,0.7792,2707.4,2707.1,3.69396]
[1739991293384,0.7792,2707.4,2707.2,3.69382]
[1739991293561,0.7792,2707.4,2707.3,3.69371]
[1739991295113,0.8238,2707.7,2707.3,3.69371]
[1739991295418,1.83859,2707.7,2707.3,3.69371]
[1739991295618,6.09463644,2707.9,2707.7,3.69314]
[1739991295779,0.71,2708.2,2708.1,3.69262]
[1739991295973,0.71,2708.2,2708.0,3.69274]
[1739991295974,0.71,2708.2,2708.0,3.69267]
[1739991296199,0.71,2708.2,2708.1,3.69262]
[1739991296677,0.71,2708.2,2708.0,3.69267]
[1739991297014,0.71,2708.2,2708.0,7.38535]
[1739991297223,0.71,2708.2,2708.0,3.69267]
[1739991297927,0.71,2708.2,2708.1,3.69262]
[1739991298625,0.71,2708.2,2708.0,7.38533]
[1739991298999,0.71,2708.2,2708.1,3.69262]
[1739991299398,0.71,2708.2,2708.1,4.431146]
[1739991300527,0.71,2708.2,2708.1,1.488626]
[1739991300702,0.71,2708.2,2708.1,0.738526]
[1739991301225,0.782,2708.6,2708.1,0.738526]
[1739991301382,0.782,2708.6,2708.0,3.69265]
[1739991301785,0.782,2708.6,2708.2,3.69243]
[1739991302009,0.782,2708.6,2708.3,3.69231]
[1739991302251,0.782,2708.6,2708.1,3.6925]
[1739991302573,4.47396,2708.6,2708.2,0.36925]
[1739991302727,4.47396,2708.6,2708.1,3.69253]
[1739991303227,4.47396,2708.6,2707.9,4.44292]
[1739991303768,3.69209,2708.5,2707.9,4.44292]
[1739991303964,3.69209,2708.5,2708.0,0.444292]
[1739991305269,0.782,2708.6,2708.0,0.444292]
[1739991305568,3.69242,2708.3,2707.7,9.0631]
[1739991305870,0.782,2708.6,2708.0,3.69274]
[1739991306087,0.782,2708.6,2708.1,3.6925]
[1739991306237,0.782,2708.6,2708.3,3.69233]
[1739991306441,0.782,2708.6,2708.2,4.06173]
[1739991306868,0.782,2708.6,2708.2,0.36925]
[1739991307281,0.782,2708.6,2708.0,3.69265]
[1739991307439,0.782,2708.6,2708.1,3.69256]
[1739991307641,0.782,2708.6,2708.0,3.69265]
[1739991308187,3.6921,2708.5,2707.8,3.69293]
[1739991308486,4.52402,2708.3,2707.7,9.06316]
[1739991308653,0.8316,2708.3,2707.5,4.50333]
[1739991308858,3.6925,2708.2,2707.6,3.69329]
[1739991309359,7.38506,2708.2,2707.6,3.69329]
[1739991309580,7.38506,2708.2,2707.7,0.819662]
[1739991309880,3.6925,2708.2,2707.7,0.819662]
[1739991310070,3.69264,2708.1,2707.7,0.819662]
[1739991310391,7.38511,2708.2,2707.7,0.819662]
[1739991310543,3.69263,2708.1,2707.7,0.819662]
[1739991310740,3.69303,2707.8,2707.1,9.06396]
[1739991310959,4.50603,2707.7,2707.1,9.89146]
[1739991311155,4.50603,2707.7,2707.1,13.58538]
[1739991311387,4.50603,2707.7,2707.2,5.052348]
[1739991311583,4.50603,2707.7,2707.2,1.358538]
[1739991312269,0.8128,2707.7,2707.5,3.69336]
[1739991312469,0.801,2708.2,2707.7,3.6931]
[1739991313202,0.801,2708.2,2707.5,4.47374]
[1739991313491,3.69262,2708.1,2707.6,0.447374]
[1739991314045,0.801,2708.2,2707.6,4.140654]
[1739991314392,3.69272,2708.1,2707.6,0.447374]
[1739991314571,4.49351,2708.2,2707.6,0.447374]
[1739991314776,0.801,2708.2,2708.1,3.69262]
[1739991314945,0.71,2708.2,2708.0,3.69274]
[1739991315143,0.71,2708.2,2707.9,4.48713]
[1739991315346,0.71,2708.2,2707.8,3.69298]
[1739991315880,0.71,2708.2,2707.7,1.2864134]
[1739991316182,0.71,2708.2,2707.8,0.49797134]
[1739991317601,0.71,2708.2,2707.9,3.69287]
[1739991317749,0.71,2708.2,2707.8,0.49797134]
[1739991317954,0.71,2708.2,2707.8,4.19096134]
[1739991318367,0.71,2708.2,2707.8,0.49797134]
[1739991318567,0.71,2708.2,2707.9,0.49853013]
[1739991319550,4.44585,2708.1,2707.6,3.69329]
[1739991319898,3.69284,2708.0,2707.4,9.06356]
[1739991320097,3.69284,2708.0,2707.4,10.8547388]
[1739991320259,0.7532,2707.9,2707.4,10.8547388]
[1739991320593,4.44616,2707.9,2707.4,7.1611788]
[1739991321482,4.44616,2707.9,2707.4,10.8547088]
[1739991322124,4.44616,2707.9,2707.4,7.1611788]
[1739991322287,4.44616,2707.9,2707.4,5.37]
[1739991322288,3.69317,2707.7,2707.4,5.37]
[1739991322714,3.69317,2707.7,2707.2,3.69385]
[1739991322885,4.44616,2707.9,2707.2,3.69385]
[1739991323283,3.69306,2707.8,2707.3,3.69363]
[1739991323486,3.69306,2707.8,2707.3,4.142603]
[1739991323714,0.7532,2707.9,2707.3,0.448973]
[1739991323913,4.44943,2708.1,2707.5,3.69335]
[1739991324101,8.14213,2708.1,2707.6,0.7554]
[1739991324421,4.44943,2708.1,2707.6,0.7554]
[1739991324621,3.69296,2707.9,2707.2,3.69373]
[1739991324826,4.44984,2707.8,2707.2,3.69373]
[1739991325185,4.44984,2707.8,2707.0,9.0641]
[1739991325186,4.4499,2707.8,2707.0,9.0641]
[1739991325385,0.7568,2707.8,2707.0,9.0641]
[1739991325800,3.69317,2707.7,2707.0,9.0641]
[1739991326005,3.69317,2707.7,2707.0,11.30748]
[1739991326201,3.69344,2707.5,2707.0,7.61338]
[1739991326399,3.69412,2707.0,2706.6,5.5183868]
[1739991326599,3.69435,2706.9,2706.6,0.1483868]
[1739991326800,0.7514,2706.7,2706.6,0.1483868]
[1739991327012,4.44593,2706.7,2706.6,0.1483868]
[1739991327295,0.7514,2706.7,2706.6,0.1483868]
[1739991327504,6.85458467,2707.0,2706.6,0.1483868]
[1739991327706,0.7514,2706.9,2706.6,0.1483868]
[1739991329349,3.91182467,2707.3,2706.6,4.99680748]
[1739991329641,0.7514,2707.3,2707.2,3.69385]
[1739991329843,0.7514,2707.3,2706.6,1.30221748]
[1739991330012,0.7514,2707.3,2706.9,3.69424]
[1739991330342,0.7514,2707.3,2706.7,3.69453]
[1739991330343,0.7514,2707.3,2706.8,3.69432]
[1739991330541,6.4208,2707.5,2707.1,3.69394]
[1739991330744,6.4208,2707.5,2706.9,3.69414]
[1739991331548,9.84425,2707.5,2706.8,4.56348775]
[1739991331847,3.69401,2707.1,2706.6,0.53271748]
[1739991332144,0.7877,2707.0,2706.6,0.1483868]
[1739991332646,7.67021467,2707.3,2706.7,3.69446]
[1739991333018,7.67021467,2707.3,2706.7,7.38891]
[1739991333333,3.97642467,2707.3,2706.7,3.69445]
[1739991333529,0.816,2707.3,2706.8,4.52062]
[1739991333730,4.50977,2707.3,2706.8,0.8263]
[1739991333938,4.50977,2707.3,2706.7,3.69445]
[1739991334133,4.50975,2707.3,2706.7,3.69445]
[1739991334347,4.50975,2707.3,2706.7,4.53083968]
[1739991334513,4.50971,2707.3,2706.7,4.53083968]
[1739991334706,4.50971,2707.3,2706.8,3.69438]
[1739991334906,4.50971,2707.3,2706.7,4.53083968]
[1739991335108,4.50971,2707.3,2706.7,4.53082968]
[1739991335520,3.69387,2707.2,2706.7,0.83638968]
[1739991335726,3.69385,2707.2,2706.6,0.1483868]
[1739991336149,3.694,2707.1,2706.6,0.1483868]
[1739991336351,7.67013467,2707.3,2706.6,3.8429168]
[1739991336555,7.67013467,2707.3,2706.7,3.69446]
[1739991336704,4.50971,2707.3,2706.7,3.69446]
[1739991336911,3.69393,2707.2,2706.7,0.75373768]
[1739991337107,3.69393,2707.2,2706.6,0.1483868]
[1739991337409,3.69402,2707.1,2706.6,0.1483868]
[1739991337844,4.46277,2706.9,2706.6,0.1483868]
[1739991338046,0.7684,2706.9,2706.6,0.1483868]
[1739991338228,3.69441,2706.8,2706.6,0.1483868]
[1739991338425,8.204592,2706.8,2706.6,0.1483868]
[1739991338717,3.69453,2706.7,2706.6,0.1483868]
[1739991338915,3.92882467,2706.9,2706.6,0.1483868]
[1739991339155,7.62313467,2706.9,2706.6,0.1483868]
[1739991339311,3.6944,2706.8,2706.6,0.1483868]
[1739991339651,4.45672247,2706.8,2706.6,0.1483868]
[1739991340766,0.7684,2706.9,2706.6,0.1483868]
[1739991341751,3.6944,2706.8,2706.6,0.1483868]
[1739991342058,5.36,2707.2,2706.7,0.8054]
[1739991342459,5.36,2707.2,2707.1,3.69398]
[1739991342949,0.776,2707.8,2707.4,3.69346]
[1739991343250,0.776,2707.8,2707.1,0.8054]
[1739991343251,1.16964247,2707.8,2707.1,0.8054]
[1739991343410,3.69317,2707.7,2707.1,0.8054]
[1739991343813,3.69319,2707.7,2707.1,4.49937]
[1739991344013,3.69332,2707.6,2707.1,0.8054]
[1739991344258,3.69334,2707.6,2707.1,0.8054]
[1739991344915,3.69319,2707.7,2707.1,0.8054]
[1739991345120,3.69344,2707.6,2707.1,0.8054]
[1739991345343,3.69345,2707.5,2707.1,0.8054]
[1739991345527,3.69358,2707.4,2707.1,0.8054]
[1739991346463,3.69345,2707.5,2707.1,0.8054]
[1739991346658,7.387,2707.5,2707.1,0.8054]
[1739991346860,3.69359,2707.4,2707.1,0.8054]
[1739991347590,3.69385,2707.2,2706.8,0.8273]
[1739991347950,7.67373467,2707.4,2706.8,4.5216]
[1739991348351,7.67372467,2707.4,2706.8,0.8273]
[1739991348657,3.69394,2707.2,2706.8,0.8273]
[1739991348895,7.38788,2707.2,2706.7,5.37]
[1739991349399,3.69394,2707.2,2706.7,5.37]
[1739991349554,7.38787,2707.2,2706.7,5.37]
[1739991349755,3.69399,2707.1,2706.6,0.1483868]
[1739991349993,3.69419,2707.0,2706.6,0.1483868]
[1739991350194,3.69412,2707.0,2706.6,0.1483868]
[1739991350858,7.67361467,2707.4,2706.6,0.1483868]
[1739991350859,3.69399,2707.1,2706.6,0.1483868]
[1739991351360,3.6942,2707.0,2706.6,0.1483868]
[1739991351867,3.69399,2707.1,2706.6,0.1483868]
[1739991352070,3.69418,2707.0,2706.6,0.1483868]
[1739991353292,7.38842,2707.0,2706.6,0.1483868]
[1739991353493,3.69418,2707.0,2706.6,0.1483868]
[1739991353812,3.69429,2706.9,2706.6,0.1483868]
[1739991354403,3.69453,2706.7,2706.6,0.1483868]
[1739991354907,4.48543,2706.7,2706.6,0.1483868]
[1739991355418,3.16042467,2706.8,2706.6,0.1483868]
[1739991355627,6.85489467,2706.8,2706.6,0.1483868]
[1739991357172,3.69453,2706.7,2706.6,0.1483868]
[1739991359619,4.74947247,2706.7,2706.6,0.1483868]
[1739991359815,3.69453,2706.7,2706.6,0.1483868]
[1739991360015,3.16042467,2706.9,2706.6,0.1483868]
[1739991360532,6.85476467,2706.9,2706.6,0.1483868]
[1739991360682,6.85476467,2706.9,2706.6,0.9729868]
[1739991360878,3.16042467,2706.9,2706.6,0.9729868]
[1739991361295,1.53104015,2707.1,2706.6,0.9729868]
[1739991361495,3.16042467,2707.2,2706.9,3.69419]
[1739991361728,3.16042467,2707.2,2706.6,0.9729868]
[1739991361729,3.16042467,2707.2,2706.7,3.69443]
[1739991361936,3.16042467,2707.2,2706.8,3.69439]
[1739991362540,0.73554945,2707.6,2707.1,0.781]
[1739991362726,0.7854,2707.8,2707.4,3.69353]
[1739991363039,5.36,2708.1,2707.3,3.69369]
[1739991363040,9.05263,2708.1,2707.3,3.69369]
[1739991363240,3.16042467,2707.8,2707.1,0.781]
[1739991363576,3.69346,2707.5,2707.1,0.781]
[1739991363729,3.16042467,2707.5,2706.9,0.7506]
[1739991363931,3.69391,2707.2,2706.8,5.37]
[1739991364164,3.69367,2707.4,2706.8,4.10377562]
[1739991364646,3.69396,2707.2,2706.8,0.40946562]
[1739991364848,3.69396,2707.2,2706.7,0.7506]
[1739991364849,3.69407,2707.1,2706.7,0.7506]
[1739991365179,3.69407,2707.1,2706.6,0.1483868]
[1739991365860,3.69424,2707.0,2706.6,0.1483868]
[1739991366440,3.69426,2706.9,2706.6,0.1483868]
[1739991366836,3.69441,2706.8,2706.6,0.1483868]
[1739991367269,7.38849,2707.0,2706.6,0.1483868]
[1739991367485,3.69421,2707.0,2706.6,0.1483868]
[1739991367652,7.38843,2707.0,2706.6,0.1483868]
[1739991368237,3.16042467,2707.1,2706.6,0.1483868]
[1739991368484,4.46943,2706.7,2706.6,0.1483868]
[1739991368850,13.37943,2706.7,2706.6,0.07221714]
[1739991369066,3.69575,2705.9,2705.4,5.37]
[1739991369267,10.92142967,2705.9,2705.3,0.7716]
[1739991369485,6.85612467,2705.9,2705.3,4.46803]
[1739991370186,3.16042467,2705.9,2705.3,4.46792]
[1739991370385,3.16042467,2705.9,2705.3,5.451712]
[1739991370593,6.85607467,2705.9,2705.3,5.451712]
[1739991370887,3.69587,2705.8,2705.3,0.7716]
[1739991371042,6.85607467,2705.9,2705.3,4.46804]
[1739991371549,3.16042467,2705.9,2705.4,3.69622]
[1739991371769,3.69578,2705.8,2705.0,9.85494]
[1739991372078,3.69593,2705.7,2705.0,9.85494]
[1739991372281,3.69578,2705.8,2705.0,11.210138]
[1739991372454,3.69578,2705.8,2705.1,3.69671]
[1739991373094,6.85653467,2705.6,2705.0,7.513398]
[1739991373380,6.85653467,2705.6,2705.0,6.725198]
[1739991373556,6.85653467,2705.6,2705.0,10.422028]
[1739991374272,3.16042467,2705.6,2705.1,3.69667]
[1739991374473,6.85613467,2705.9,2705.1,3.69667]
[1739991374641,3.69577,2705.8,2705.2,3.69658]
[1739991375185,8.52472714,2705.9,2705.3,3.69634]
[1739991375384,3.69579,2705.8,2705.1,3.69663]
[1739991375680,3.69591,2705.7,2705.1,7.39323]
[1739991375879,3.69591,2705.7,2705.1,3.6966]
[1739991376089,3.69658,2705.2,2704.5,5.37]
[1739991376258,3.69658,2705.2,2704.4,1.57185659]
[1739991376259,3.69725,2704.8,2704.4,0.8227]
[1739991376586,3.93852467,2705.0,2703.9,0.1483868]
[1739991376587,3.69751,2704.6,2703.9,0.1483868]
[1739991376885,3.69755,2704.5,2703.9,0.1483868]
[1739991377059,3.69755,2704.5,2703.9,3.8467368]
[1739991377442,3.69755,2704.5,2703.9,7.5450168]
[1739991377591,11.24090514,2704.7,2704.0,3.6982]
[1739991377951,3.69742,2704.6,2703.9,3.8466568]
[1739991378153,3.69769,2704.4,2703.9,3.8466568]
[1739991378449,0.7936,2704.5,2703.9,3.8466568]
[1739991378654,0.7936,2704.5,2703.9,3.8466668]
[1739991378895,0.7936,2704.5,2704.3,3.69779]
[1739991379067,0.7936,2704.5,2703.9,3.8466568]
[1739991379266,1.18900247,2704.5,2703.9,0.1483868]
[1739991379792,1.18900247,2704.5,2704.0,3.69811]
[1739991380091,1.18900247,2704.5,2703.9,3.8466468]
[1739991380298,1.18900247,2704.5,2703.9,0.1483868]
[1739991380451,1.18900247,2704.5,2704.1,3.69796]
[1739991380656,1.18900247,2704.5,2704.2,3.69793]
[1739991381478,0.7936,2704.5,2704.2,3.69793]
[1739991382662,0.7936,2704.5,2704.1,3.69802]
[1739991382872,0.7936,2704.5,2704.0,3.69818]
[1739991383064,0.7936,2704.5,2704.0,7.3963]
[1739991383401,0.7936,2704.5,2703.9,0.1483868]
[1739991383605,0.7936,2704.5,2703.9,3.8466068]
[1739991383764,0.7936,2704.5,2703.9,7.5448668]
[1739991383965,0.7936,2704.5,2704.0,3.69821]
[1739991384168,0.476207,2704.4,2703.9,3.8466068]
[1739991384497,0.476207,2704.4,2703.9,0.1483868]
[1739991384695,0.476207,2704.4,2703.9,3.8467468]
[1739991384936,6.85852467,2704.1,2703.9,0.1483868]
[1739991385104,0.8222,2704.3,2703.9,3.8466268]
[1739991385414,0.747207,2704.4,2704.1,3.69797]
[1739991385614,6.1822,2704.5,2704.1,3.69797]
[1739991386295,6.1822,2704.5,2704.2,3.69792]
[1739991387087,0.7788,2704.8,2704.7,3.69726]
[1739991387291,0.272,2705.0,2704.3,3.69774]
[1739991387473,0.38020827,2704.9,2704.3,3.69774]
[1739991387883,0.38020827,2704.9,2704.3,7.39548]
[1739991388076,0.38020827,2704.9,2704.3,3.69774]
[1739991388294,3.69727,2704.7,2704.0,4.49779]
[1739991388467,0.76364947,2704.6,2704.0,4.49779]
[1739991389074,9.29922467,2704.8,2704.2,3.69794]
[1739991389306,12.99637467,2704.8,2704.0,4.49779]
[1739991389513,3.69736,2704.7,2704.1,3.69807]
[1739991389699,12.99637467,2704.8,2704.2,3.69793]
[1739991390019,1.33765829,2704.7,2704.2,3.69793]
[1739991390697,3.69742,2704.6,2704.0,0.7997]
[1739991391009,0.8061,2704.3,2703.9,0.1483868]
[1739991392311,0.8061,2704.3,2704.0,3.69815]
[1739991392498,0.8294,2704.6,2704.2,3.69794]
[1739991393090,2.2678743,2704.6,2704.2,3.69794]
[1739991393990,2.2678743,2704.6,2704.3,3.6978]
[1739991394169,2.2678743,2704.6,2703.9,0.1483868]
[1739991394376,9.34982467,2704.8,2704.5,3.69751]
[1739991394574,9.34982467,2704.8,2704.3,3.69775]
[1739991395317,9.34982467,2704.8,2704.3,3.69773]
[1739991396119,9.34982467,2704.8,2704.5,3.69747]
[1739991396529,6.1894,2704.8,2704.5,3.69747]
[1739991396712,6.1894,2704.8,2704.4,3.6976]
[1739991397112,6.1894,2704.8,2704.3,3.69773]
[1739991397428,6.1894,2704.8,2704.5,3.69753]
[1739991397720,6.1894,2704.8,2704.5,3.69747]
[1739991398207,6.1894,2704.8,2704.5,7.39493]
[1739991398609,6.1894,2704.8,2704.5,3.69746]
[1739991399110,6.1894,2704.8,2704.5,7.3949]
[1739991399421,6.1894,2704.8,2704.5,7.0421]
[1739991399622,6.1894,2704.8,2704.5,3.34466]
[1739991399998,0.8294,2704.8,2704.4,3.69764]
[1739991400323,1.25036083,2704.8,2704.3,7.39543]
[1739991401025,1.25036083,2704.8,2704.4,3.69763]
[1739991401449,1.25036083,2704.8,2704.4,3.69767]
[1739991401624,0.8294,2704.8,2704.4,3.69767]
[1739991401786,3.8103,2705.0,2704.2,3.69795]
[1739991401982,0.8103,2705.0,2704.8,3.69711]
[1739991402286,0.55,2705.4,2705.3,3.69632]
[1739991402287,0.73804565,2705.4,2705.3,3.69632]
[1739991402517,0.7892,2705.7,2705.3,3.69642]
[1739991403315,0.7892,2705.7,2705.1,3.69662]
[1739991403622,4.86403,2705.7,2705.2,3.69647]
[1739991403835,4.86403,2705.7,2705.3,3.69642]
[1739991404134,4.86403,2705.7,2705.1,3.69661]
[1739991404319,0.55,2705.9,2705.3,3.69631]
[1739991404521,3.71042467,2705.9,2705.4,3.69624]
[1739991404841,3.71042467,2705.9,2704.9,4.48903]
[1739991404842,3.6959,2705.7,2705.1,3.69663]
[1739991404991,3.0,2705.8,2705.3,3.69634]
[1739991405193,4.68261747,2705.8,2705.4,3.69629]
[1739991405837,1.68261747,2705.8,2705.6,3.69593]
[1739991406024,6.1492,2706.0,2705.6,3.69593]
[1739991406346,6.1492,2706.0,2705.7,3.6959]
[1739991407009,5.36,2706.0,2705.9,3.69562]
[1739991407209,5.36,2706.0,2705.6,3.69603]
[1739991407210,0.8118,2706.4,2705.4,0.8105]
[1739991407492,0.8118,2706.0,2705.4,3.69624]
[1739991407652,4.5073,2706.0,2705.4,3.69624]
[1739991407952,3.97222467,2706.0,2705.4,3.69624]
[1739991408104,3.69568,2705.9,2705.3,5.37]
[1739991408299,1.13634247,2705.8,2705.2,8.18353]
[1739991408531,1.13634247,2705.8,2705.2,4.48701]
[1739991408744,1.13634247,2705.8,2705.2,4.48698]
[1739991408932,3.69591,2705.7,2705.1,3.69669]
[1739991409240,0.85280825,2705.6,2705.0,7.39353]
[1739991409445,0.7873,2705.9,2704.9,0.819]
[1739991409647,3.7873,2706.1,2705.7,3.69589]
[1739991409820,3.7873,2706.1,2705.8,3.69563]
[1739991410168,3.7873,2706.1,2705.8,3.69576]
[1739991411021,8.36,2706.2,2705.9,3.6956]
[1739991411329,3.0,2706.1,2705.9,3.6956]
[1739991411507,0.7788,2706.3,2705.9,3.6956]
[1739991411904,0.7788,2706.3,2705.8,3.69573]
[1739991412101,3.69525,2706.2,2705.4,0.819]
[1739991412307,0.447405,2706.1,2705.6,3.69596]
[1739991412544,3.447405,2706.1,2705.6,3.69596]
[1739991412850,0.447405,2706.1,2705.8,3.69575]
[1739991413050,0.7788,2706.3,2705.8,3.69575]
[1739991414435,0.7788,2706.3,2705.9,3.69551]
[1739991414744,0.7788,2706.3,2706.0,3.6954]
[1739991415385,0.7788,2706.3,2705.9,3.69551]
[1739991416699,0.7788,2706.3,2705.8,3.6957]
[1739991416974,3.0,2706.2,2705.8,3.6957]
[1739991418078,3.0,2706.2,2705.8,3.69564]
[1739991418275,5.09647525,2706.3,2705.6,3.69595]
[1739991418479,5.09647525,2706.3,2705.7,3.69583]
[1739991418480,8.79161525,2706.3,2705.7,3.69583]
[1739991419059,1.17514247,2706.5,2705.9,4.4554]
[1739991419366,4.87004247,2706.5,2706.0,3.69541]
[1739991419580,3.0,2706.4,2706.0,3.69541]
[1739991419896,1.17514247,2706.5,2706.1,3.69532]
[1739991420197,1.17514247,2706.5,2705.9,0.7598]
[1739991420398,4.87000247,2706.5,2706.0,3.69547]
[1739991420556,4.86996247,2706.5,2706.0,3.69547]
[1739991420757,1.17514247,2706.5,2706.0,3.69541]
[1739991420952,4.86995247,2706.5,2706.1,3.69535]
[1739991421157,4.86995247,2706.5,2706.0,3.69548]
[1739991421567,4.86995247,2706.5,2705.9,0.7598]
[1739991421766,0.78699525,2706.4,2706.0,3.69542]
[1739991422170,0.78699525,2706.4,2705.8,3.69574]
[1739991422535,0.78699525,2706.4,2705.9,3.69559]
[1739991422680,1.17514247,2706.5,2706.0,3.69542]
[1739991423071,1.17514247,2706.5,2706.1,3.69534]
[1739991423600,1.17514247,2706.5,2706.3,3.69504]
[1739991423601,0.832,2706.5,2706.3,3.69504]
[1739991423898,0.832,2706.5,2706.0,3.6954]
[1739991424083,0.832,2706.5,2706.2,3.69514]
[1739991424280,0.832,2706.5,2706.2,3.69516]
[1739991424482,0.832,2706.5,2706.2,3.69515]
[1739991424871,0.832,2706.5,2706.2,7.39028]
[1739991425460,0.832,2706.5,2706.2,3.69513]
[1739991425801,3.8078,2706.7,2706.0,0.7794]
[1739991425969,0.8078,2707.1,2706.4,3.69488]
[1739991426161,4.50188,2707.1,2706.3,0.7794]
[1739991426377,3.69432,2706.9,2706.3,4.47437]
[1739991426572,7.38868,2706.9,2706.3,4.47437]
[1739991427015,3.69442,2706.8,2706.3,0.7794]
[1739991427210,3.69433,2706.9,2706.3,4.47445]
[1739991427416,3.6944,2706.8,2706.2,3.6952]
[1739991427614,4.50234,2706.7,2706.1,4.47466]
[1739991428174,1.59035547,2706.9,2706.1,0.7794]
[1739991428398,0.8241,2706.9,2706.3,3.69496]
[1739991429103,0.8241,2706.9,2706.5,3.69472]
[1739991429308,0.8241,2706.9,2706.5,3.69471]
[1739991429632,3.7714,2707.1,2706.7,3.69442]
[1739991430523,0.7714,2707.1,2706.8,3.69428]
[1739991430723,0.7714,2707.1,2706.6,4.47413]
[1739991430891,0.7714,2707.1,2706.6,1.226913]
[1739991431099,3.69412,2707.0,2706.5,3.69479]
[1739991431306,3.69428,2706.9,2706.2,9.85721]
[1739991431620,4.50418,2706.8,2706.2,9.85731]
[1739991431795,4.50418,2706.8,2706.2,14.907727]
[1739991431991,4.50418,2706.8,2706.2,11.212517]
[1739991432320,3.6946,2706.7,2706.2,6.1621]
[1739991432533,3.69495,2706.4,2706.2,5.37]
[1739991432678,3.69473,2706.6,2706.0,3.69544]
[1739991432877,9.8642,2706.8,2705.9,4.45721]
[1739991432878,3.69458,2706.7,2706.1,3.69523]
[1739991433096,3.69458,2706.7,2706.1,7.39051]
[1739991433321,3.69458,2706.7,2706.2,3.69521]
[1739991433622,7.47216247,2706.8,2706.1,3.69523]
[1739991433848,6.1697,2706.8,2706.3,3.69501]
[1739991434048,6.1697,2706.8,2706.4,3.69494]
[1739991435754,6.1697,2706.8,2706.5,3.6948]
[1739991436116,6.1697,2706.8,2706.4,3.69483]
[1739991436340,5.36,2706.8,2706.3,0.7535]
[1739991436525,5.36,2706.8,2706.6,3.69461]
[1739991436735,5.36,2706.8,2706.7,3.69453]
[1739991436938,5.36,2706.8,2706.4,3.69484]
[1739991438657,3.69427,2706.9,2706.4,3.69484]
[1739991438965,3.69427,2706.9,2706.4,4.509186]
[1739991439263,3.0,2707.1,2706.2,3.69512]
[1739991439559,4.4483,2706.7,2706.2,3.69512]
[1739991440557,4.4483,2706.7,2706.1,6.1637]
[1739991440857,8.14294,2706.7,2706.1,9.85897]
[1739991441025,3.69476,2706.6,2706.1,9.85897]
[1739991441229,3.69476,2706.6,2706.1,5.37]
[1739991441641,4.44831,2706.7,2706.1,9.06527]
[1739991441932,4.44831,2706.7,2706.1,10.420289]
[1739991442328,0.7537,2706.7,2706.1,10.420349]
[1739991442654,4.44823,2706.7,2706.1,10.420349]
[1739991442857,3.6948,2706.6,2706.1,6.725019]